bitfinex-derivatives/quotes_ETHF0:USTF0_20250626
["timestamp","ask_amount","ask_price","bid_price","bid_amount"]
[1750969644941,0.81798,2444.1,2443.9,0.81801]
[1750969645740,0.81798,2444.1,2444.0,0.81799]
[1750969646042,0.81795,2444.1,2443.9,0.818]
[1750969646447,0.81794,2444.2,2443.9,0.818]
[1750969646640,0.81794,2444.2,2444.1,3.2078]
[1750969646840,2.16354,2444.2,2444.1,3.2078]
[1750969648537,0.81803,2443.9,2443.8,3.2078]
[1750969648840,7.0764,2444.2,2443.8,3.2078]
[1750969648841,4.1962892,2444.0,2443.8,4.02585]
[1750969649042,1.3456,2443.9,2443.8,4.02585]
[1750969649242,2.0641,2443.9,2443.8,4.02585]
[1750969649540,2.0641,2443.9,2443.8,3.2078]
[1750969649541,2.88212,2443.9,2443.8,3.2078]
[1750969649841,2.0641,2443.9,2443.8,4.02585]
[1750969650035,2.0641,2443.9,2443.8,3.2078]
[1750969650336,2.88212,2443.9,2443.8,3.2078]
[1750969653241,2.0641,2443.9,2443.8,3.2078]
[1750969653444,2.0641,2443.9,2443.8,4.02585]
[1750969654643,0.81799,2444.0,2443.8,4.02585]
[1750969655243,0.81799,2444.0,2443.9,0.7298]
[1750969655832,0.81802,2443.9,2443.8,3.2078]
[1750969656745,0.81801,2444.0,2443.8,3.2078]
[1750969657345,0.81801,2444.0,2443.8,4.02585]
[1750969657643,2.23618,2444.1,2443.8,4.02585]
[1750969657942,2.23618,2444.1,2443.9,0.81802]
[1750969658241,2.23618,2444.1,2443.8,4.02583]
[1750969658445,0.81799,2444.0,2443.8,4.02583]
[1750969659335,0.81799,2444.0,2443.8,3.2078]
[1750969659540,0.81802,2443.9,2443.8,3.2078]
[1750969660548,0.818,2444.0,2443.8,4.02585]
[1750969661438,0.81802,2443.9,2443.8,3.2078]
[1750969661643,5.5463092,2443.9,2443.8,3.2078]
[1750969663345,0.81802,2443.9,2443.8,3.2078]
[1750969663540,0.81801,2444.0,2443.8,3.2078]
[1750969663746,0.81802,2443.9,2443.8,3.2078]
[1750969664143,0.81802,2443.9,2443.8,3.9323]
[1750969664446,2.16801,2444.0,2443.8,3.9323]
[1750969664744,6.47,2444.1,2443.9,0.81802]
[1750969664952,7.28797,2444.1,2443.9,0.81802]
[1750969665347,1.4638,2444.2,2443.8,3.9323]
[1750969665553,0.7308,2444.2,2444.1,3.2078]
[1750969666046,0.7308,2444.2,2444.1,4.02575]
[1750969668147,8.67688,2444.4,2444.2,0.81791]
[1750969668453,0.81789,2444.3,2444.2,0.679]
[1750969670552,0.81789,2444.3,2444.2,1.49692]
[1750969672446,0.81789,2444.3,2444.2,0.679]
[1750969672949,0.81789,2444.3,2444.2,1.49692]
[1750969675959,2.20688,2444.4,2444.2,1.49692]
[1750969676756,0.81789,2444.3,2444.2,0.679]
[1750969677556,2.20687,2444.4,2444.2,0.679]
[1750969678157,2.20687,2444.4,2444.1,4.02573]
[1750969678158,0.81792,2444.2,2444.1,3.2078]
[1750969678557,2.22662,2444.2,2444.1,3.2078]
[1750969680561,7.22662,2444.2,2444.1,3.2078]
[1750969681458,2.22662,2444.2,2444.1,3.2078]
[1750969682654,0.81792,2444.2,2444.1,3.2078]
[1750969683158,2.14412,2444.2,2444.1,3.2078]
[1750969686655,0.81792,2444.2,2444.1,3.2078]
[1750969687958,4.1962092,2444.2,2444.1,3.2078]
[1750969689765,0.81802,2443.9,2443.8,1.22250811]
[1750969689959,0.81805,2443.8,2443.7,4.43030811]
[1750969690157,5.5717392,2443.8,2443.7,3.2078]
[1750969692967,0.81805,2443.8,2443.7,3.2078]
[1750969694361,0.81812,2443.6,2443.5,1.22250811]
[1750969694663,4.1964092,2443.6,2443.5,1.22250811]
[1750969695064,0.81816,2443.5,2443.4,4.43030811]
[1750969695458,2.21626,2443.5,2443.4,4.43030811]
[1750969700167,2.21626,2443.5,2443.4,3.2078]
[1750969700762,0.81819,2443.4,2443.3,1.22250811]
[1750969700957,0.81819,2443.4,2443.3,8.11e-06]
[1750969700958,12.0807792,2443.4,2443.3,8.11e-06]
[1750969701164,0.81826,2443.2,2443.1,1.62637201]
[1750969701363,4.51959398,2443.2,2443.1,1.62637201]
[1750969701567,3.3782892,2443.2,2442.9,1.62637201]
[1750969701767,4.1966092,2443.0,2442.9,1.62637201]
[1750969703668,0.81832,2443.0,2442.9,1.62637201]
[1750969703972,0.81832,2443.0,2442.9,0.727]
[1750969710277,0.81832,2443.0,2442.9,2.0632]
[1750969710471,5.63961225,2443.7,2442.9,7.0632]
[1750969710671,0.81809,2443.7,2443.6,3.2078]
[1750969711375,0.81809,2443.7,2443.6,6.5860892]
[1750969711564,0.81809,2443.7,2443.6,8.0181892]
[1750969711968,0.81809,2443.7,2443.6,4.6399]
[1750969713781,0.81809,2443.7,2443.6,5.3233]
[1750969714683,0.81804,2443.9,2443.6,14.5196992]
[1750969714879,0.81804,2443.9,2443.6,15.9866992]
[1750969715374,0.81806,2443.8,2443.6,15.9866992]
[1750969715980,0.81806,2443.8,2443.7,0.81809]
[1750969717266,2.04486,2444.2,2443.6,15.9866992]
[1750969717473,0.81792,2444.2,2444.1,3.2078]
[1750969724282,0.81797,2444.1,2443.9,9.37421]
[1750969724587,0.81797,2444.1,2444.0,3.2078]
[1750969724888,0.81797,2444.1,2444.0,4.6244]
[1750969726182,0.81797,2444.1,2444.0,3.2078]
[1750969727090,0.81797,2444.1,2444.0,5.48109]
[1750969727388,2.04458,2444.5,2444.1,0.81795]
[1750969727885,0.81792,2444.2,2444.1,1.4553]
[1750969728382,0.7028,2444.6,2444.2,0.8179]
[1750969728590,0.81779,2444.6,2444.5,3.2078]
[1750969731486,0.81779,2444.6,2444.5,4.02562]
[1750969731688,0.81779,2444.6,2444.5,9.6698]
[1750969731890,0.81779,2444.6,2444.5,10.48762]
[1750969732392,0.81779,2444.6,2444.5,9.6698]
[1750969732593,0.81779,2444.6,2444.5,10.48762]
[1750969732793,1.4124,2445.0,2444.5,18.0480892]
[1750969732990,1.354,2445.5,2444.9,6.5860892]
[1750969733184,0.81752,2445.4,2445.3,3.2078]
[1750969733390,2.43181225,2446.2,2445.5,0.81747]
[1750969733594,0.81735,2445.9,2445.8,3.2078]
[1750969734287,0.6924,2446.4,2445.8,12.4034592]
[1750969734487,0.8173,2446.1,2446.0,3.2078]
[1750969735083,2.2597,2446.1,2446.0,3.2078]
[1750969738094,0.8173,2446.1,2446.0,3.2078]
[1750969742308,0.81739,2445.8,2445.7,3.2078]
[1750969742498,4.1956792,2445.8,2445.7,3.2078]
[1750969743112,0.81749,2445.5,2445.4,9.6668]
[1750969743299,0.81749,2445.5,2445.4,3.2078]
[1750969745004,2.93009,2445.5,2445.4,3.2078]
[1750969745805,2.93009,2445.5,2445.1,3.2078]
[1750969745806,4.15637,2445.5,2445.1,3.2078]
[1750969746012,0.81759,2445.2,2445.1,3.2078]
[1750969749417,4.1958792,2445.2,2445.1,3.2078]
[1750969749606,4.1958792,2445.2,2444.5,5.4853892]
[1750969749607,0.81771,2444.9,2444.8,9.6668]
[1750969750209,0.81771,2444.9,2444.8,3.2078]
[1750969751011,0.81769,2444.9,2444.8,3.2078]
[1750969760912,5.6222792,2444.9,2444.8,3.2078]
[1750969761121,0.81779,2444.6,2444.5,3.2078]
[1750969761816,2.94849,2444.6,2444.5,3.2078]
[1750969763621,0.81779,2444.6,2444.5,3.2078]
[1750969767526,0.81779,2444.6,2444.5,4.02562]
[1750969767726,0.81779,2444.6,2444.5,6.20282]
[1750969770627,0.81779,2444.6,2444.5,4.75032]
[1750969772028,0.81776,2444.7,2444.6,0.81778]
[1750969772329,0.81776,2444.7,2444.6,1.51588]
[1750969772530,0.81774,2444.8,2444.6,2.85558]
[1750969773831,0.81775,2444.7,2444.6,2.85558]
[1750969774333,0.81775,2444.7,2444.6,4.0697609]
[1750969774723,0.81775,2444.7,2444.6,0.6981]
[1750969777333,0.81775,2444.7,2444.6,1.9122809]
[1750969777541,0.81775,2444.7,2444.6,0.6981]
[1750969777829,0.81779,2444.6,2444.5,4.4219809]
[1750969778038,3.61109,2444.6,2444.5,4.4219809]
[1750969778839,3.61109,2444.6,2444.5,3.2078]
[1750969779430,8.61109,2444.6,2444.5,3.2078]
[1750969779732,0.81782,2444.5,2444.4,1.2141809]
[1750969780035,2.21632,2444.5,2444.4,1.2141809]
[1750969780236,7.21632,2444.5,2444.4,1.2141809]
[1750969780438,6.3985,2444.5,2444.2,1.2141809]
[1750969780628,3.3782892,2444.3,2444.2,1.2141809]
[1750969780828,4.1961792,2444.3,2444.2,1.2141809]
[1750969781728,0.81792,2444.2,2444.1,1.2141809]
[1750969781927,2.93112,2444.2,2444.1,1.2141809]
[1750969782531,0.81795,2444.1,2444.0,1.2141809]
[1750969782727,2.25085,2444.1,2444.0,1.2141809]
[1750969782923,0.81799,2444.0,2443.9,1.2141809]
[1750969784232,0.81802,2443.9,2443.8,4.4219809]
[1750969784442,2.92812,2443.9,2443.8,3.2078]
[1750969784644,9.42412,2443.9,2443.8,3.2078]
[1750969788142,1.52232,2443.9,2443.8,3.2078]
[1750969791442,0.81793,2444.2,2443.9,0.81801]
[1750969791643,0.81793,2444.2,2444.1,3.2078]
[1750969792042,11.1086,2444.6,2444.1,3.2078]
[1750969792435,0.81792,2444.2,2444.1,3.2078]
[1750969792939,0.81792,2444.3,2444.1,4.02575]
[1750969793138,14.56592,2444.6,2444.1,4.02575]
[1750969793441,0.81792,2444.2,2444.1,3.2078]
[1750969793643,0.81792,2444.2,2444.1,4.6296]
[1750969793943,0.81791,2444.3,2444.1,5.44755]
[1750969794145,0.81791,2444.3,2444.1,4.6296]
[1750969794341,0.81791,2444.3,2444.1,5.44752]
[1750969794935,0.81792,2444.2,2444.1,5.44752]
[1750969795144,6.526,2444.5,2444.1,4.6296]
[1750969795344,0.81792,2444.2,2444.1,2.23973]
[1750969795544,0.81792,2444.2,2444.1,5.44753]
[1750969797740,0.81791,2444.3,2444.2,0.81792]
[1750969797947,0.81791,2444.3,2444.1,4.6296]
[1750969798151,25.1,2445.1,2444.1,9.6296]
[1750969798447,6.50020145,2445.1,2444.3,3.2078]
[1750969798641,0.81782,2444.6,2444.4,2.90624]
[1750969798841,0.81782,2444.6,2444.5,0.81782]
[1750969799244,1.3632,2445.0,2444.6,0.81777]
[1750969799450,7.2161,2445.1,2444.7,0.81773]
[1750969799646,7.2161,2445.1,2444.6,5.278]
[1750969799647,9.2602,2445.1,2444.6,5.278]
[1750969799852,9.2602,2445.1,2444.6,6.09578]
[1750969800335,9.2602,2445.1,2444.6,5.278]
[1750969800336,0.81775,2444.7,2444.6,5.278]
[1750969801348,14.0016892,2445.1,2444.6,6.09577]
[1750969801349,0.81773,2444.8,2444.6,6.09577]
[1750969802857,0.81775,2444.7,2444.6,5.278]
[1750969803049,0.81775,2444.7,2444.6,3.2078]
[1750969804954,0.81774,2444.8,2444.6,3.2078]
[1750969805351,0.81775,2444.7,2444.6,3.2078]
[1750969807054,0.81774,2444.8,2444.6,4.02558]
[1750969807261,0.81775,2444.7,2444.6,3.2078]
[1750969807842,0.81775,2444.7,2444.6,4.5869]
[1750969809358,0.81781,2444.6,2444.4,0.6962]
[1750969809651,4.1961092,2444.5,2444.4,0.6962]
[1750969810357,0.81782,2444.5,2444.4,0.6962]
[1750969813545,0.81782,2444.5,2444.3,3.2078]
[1750969813546,0.81785,2444.4,2444.3,3.2078]
[1750969813750,2.20275,2444.4,2444.3,3.2078]
[1750969814853,2.04482,2444.2,2444.0,3.2078]
[1750969815058,5.5811392,2444.1,2444.0,3.2078]
[1750969816861,2.20285,2444.1,2444.0,3.2078]
[1750969818860,12.1341392,2444.1,2444.0,3.2078]
[1750969819166,0.81792,2444.2,2443.9,0.81799]
[1750969819358,0.81799,2444.0,2443.9,1.2141809]
[1750969819553,0.6775,2444.3,2443.9,4.4219809]
[1750969819757,0.81799,2444.0,2443.9,4.4219809]
[1750969820264,0.81799,2444.0,2443.9,3.2078]
[1750969821364,0.81799,2444.0,2443.9,4.4219809]
[1750969821865,0.81792,2444.3,2444.1,0.81795]
[1750969822052,0.81792,2444.3,2444.2,3.2078]
[1750969823564,1.3971,2444.6,2444.2,4.02572]
[1750969823770,0.81789,2444.3,2444.2,4.02572]
[1750969823974,0.81788,2444.4,2444.2,5.44102]
[1750969824169,0.81789,2444.3,2444.2,4.6231]
[1750969824376,0.81789,2444.3,2444.2,5.44102]
[1750969824779,1.3971,2444.6,2444.3,0.81789]
[1750969824977,0.81783,2444.5,2444.4,0.81785]
[1750969825182,0.81783,2444.5,2444.3,0.81787]
[1750969825378,0.7038,2444.6,2444.2,5.44101]
[1750969825673,0.81784,2444.5,2444.3,0.81789]
[1750969826579,0.81785,2444.4,2444.3,0.81789]
[1750969826778,1.5216,2444.6,2444.2,8.0013892]
[1750969826980,0.8178,2444.6,2444.5,4.02562]
[1750969827281,0.8178,2444.6,2444.5,3.2078]
[1750969827576,0.8178,2444.6,2444.5,4.02562]
[1750969828484,0.81775,2444.8,2444.7,0.81775]
[1750969828778,0.81775,2444.7,2444.6,0.81776]
[1750969829980,0.81779,2444.6,2444.5,4.0256]
[1750969830980,0.81778,2444.7,2444.5,3.2078]
[1750969831279,0.81778,2444.7,2444.6,0.81779]
[1750969831676,0.81779,2444.6,2444.5,5.2445343]
[1750969831877,0.81778,2444.7,2444.6,0.81778]
[1750969832082,0.81774,2444.8,2444.7,0.81774]
[1750969832283,1.4973,2444.9,2444.8,0.81772]
[1750969832487,0.81777,2444.7,2444.6,0.81776]
[1750969832679,0.81773,2444.8,2444.7,0.81774]
[1750969832980,0.81771,2444.9,2444.8,0.81772]
[1750969833279,0.81772,2444.8,2444.7,0.81773]
[1750969833984,0.81772,2444.8,2444.6,1.53256]
[1750969834185,0.81775,2444.7,2444.6,1.53259]
[1750969834386,0.81775,2444.8,2444.6,1.53259]
[1750969834684,0.81775,2444.8,2444.7,0.81775]
[1750969834874,0.81775,2444.7,2444.6,1.53257]
[1750969836089,0.81775,2444.7,2444.6,2.7515043]
[1750969836383,0.81775,2444.7,2444.6,1.53257]
[1750969836883,0.81775,2444.7,2444.6,0.7148]
[1750969837975,0.81775,2444.7,2444.5,3.2078]
[1750969837976,0.81779,2444.6,2444.5,3.2078]
[1750969838176,3.61209,2444.6,2444.5,3.2078]
[1750969841283,0.81785,2444.4,2444.3,1.2189343]
[1750969841485,4.1961392,2444.4,2444.3,1.2189343]
[1750969844682,1.4615,2444.5,2444.3,1.2189343]
[1750969844882,4.08789,2445.3,2444.3,1.2189343]
[1750969844883,3.2078,2445.1,2444.4,1.62637201]
[1750969845082,3.2078,2445.1,2444.6,3.2078]
[1750969845083,0.81772,2444.8,2444.6,3.2078]
[1750969845281,0.81772,2444.8,2444.6,4.02556]
[1750969845985,0.81771,2444.9,2444.7,0.81775]
[1750969847289,0.81772,2444.8,2444.6,5.24468856]
[1750969847680,0.81766,2445.0,2444.8,0.8177]
[1750969847875,0.81767,2445.0,2444.8,0.81771]
[1750969848088,0.8177,2444.9,2444.7,0.81773]
[1750969848390,0.8177,2444.9,2444.6,5.78972856]
[1750969848691,0.7315,2445.1,2444.9,0.81767]
[1750969848882,0.81761,2445.2,2445.0,1.52435]
[1750969849188,0.81762,2445.1,2445.0,1.52434]
[1750969849989,0.81762,2445.1,2445.0,0.7067]
[1750969850489,0.81762,2445.1,2445.0,1.52435]
[1750969851388,0.8176,2445.2,2445.1,0.81761]
[1750969853385,0.81757,2445.3,2445.2,0.81758]
[1750969853682,4.1027892,2445.5,2445.0,2.61092856]
[1750969853683,0.81759,2445.2,2445.1,0.8176]
[1750969853880,0.81759,2445.2,2445.1,4.0254]
[1750969854086,0.81758,2445.3,2445.2,0.81758]
[1750969854590,0.81759,2445.2,2445.1,4.0254]
[1750969855893,0.81759,2445.2,2445.1,3.2078]
[1750969856294,0.81759,2445.2,2445.1,4.02541]
[1750969857489,0.81757,2445.3,2445.2,0.81759]
[1750969858388,0.81757,2445.3,2445.1,4.0254]
[1750969858589,0.81757,2445.3,2445.2,0.81759]
[1750969858888,5.5249892,2445.5,2445.2,0.81759]
[1750969859095,0.81755,2445.3,2445.2,0.81759]
[1750969859394,0.81755,2445.3,2445.1,5.24452856]
[1750969859589,0.81759,2445.2,2445.1,4.0254]
[1750969859896,0.81759,2445.2,2445.1,3.2078]
[1750969860093,0.81759,2445.2,2445.1,4.42725281]
[1750969860394,0.81759,2445.2,2445.1,5.24485281]
[1750969865491,0.81759,2445.2,2445.1,5.24487281]
[1750969865692,0.81759,2445.2,2445.1,4.42725281]
[1750969865994,0.81759,2445.2,2445.1,3.2078]
[1750969870898,0.81759,2445.2,2445.1,4.02542]
[1750969871106,4.8899692,2445.3,2445.2,0.81759]
[1750969871298,0.81759,2445.2,2445.1,4.02539]
[1750969872605,0.81759,2445.2,2445.1,5.24484281]
[1750969872998,0.7245,2445.5,2445.1,7.80554201]
[1750969873201,0.81747,2445.6,2445.5,0.81748]
[1750969873599,0.81747,2445.6,2445.5,1.50498]
[1750969878005,0.81743,2445.7,2445.6,0.81745]
[1750969878409,0.7281,2445.9,2445.5,1.90695281]
[1750969878710,0.81737,2445.9,2445.8,0.81739]
[1750969878906,0.81733,2446.0,2445.9,0.81734]
[1750969879505,0.81735,2445.9,2445.8,4.02518]
[1750969880804,0.81735,2445.9,2445.8,3.2078]
[1750969882711,2.22165,2445.9,2445.8,3.2078]
[1750969885514,0.81745,2445.6,2445.5,4.42725281]
[1750969886509,0.81745,2445.6,2445.5,3.2078]
[1750969891332,0.8174,2445.8,2445.6,0.81745]
[1750969891625,0.81742,2445.7,2445.6,0.81745]
[1750969892228,0.81745,2445.6,2445.5,4.42725281]
[1750969892822,0.81745,2445.6,2445.5,3.2078]
[1750969893129,0.81745,2445.6,2445.5,5.12555281]
[1750969893727,0.81745,2445.6,2445.5,5.94304281]
[1750969894427,0.81745,2445.6,2445.5,5.12555281]
[1750969895930,0.81745,2445.6,2445.5,4.42725281]
[1750969896136,3.57875,2445.6,2445.5,4.42725281]
[1750969896632,0.81749,2445.5,2445.4,1.21945281]
[1750969896929,0.81752,2445.4,2445.3,1.21945281]
[1750969897326,2.17602,2445.4,2445.3,1.21945281]
[1750969897528,0.81755,2445.3,2445.2,1.21945281]
[1750969897835,5.5543392,2445.3,2445.2,1.21945281]
[1750969898726,0.81759,2445.2,2445.1,1.21945281]
[1750969899434,2.85649,2445.2,2445.1,1.21945281]
[1750969900535,2.04364,2445.7,2445.1,1.62637201]
[1750969900833,0.81755,2445.4,2445.2,4.42754727]
[1750969901337,4.1958392,2445.4,2445.3,0.6704]
[1750969901635,0.81759,2445.2,2445.1,1.21974727]
[1750969903334,7.2095,2445.5,2445.1,1.21974727]
[1750969903534,0.6854,2445.6,2445.3,0.81755]
[1750969903736,0.6854,2445.6,2445.4,3.8759]
[1750969904036,3.2078,2446.0,2445.4,5.09564727]
[1750969904337,0.81735,2445.9,2445.6,2.03718727]
[1750969904637,0.81735,2445.9,2445.7,0.81742]
[1750969905040,0.81735,2445.9,2445.8,0.6681]
[1750969905336,4.02514,2446.0,2445.8,1.48547]
[1750969905931,3.3782892,2446.3,2445.9,0.81735]
[1750969905932,0.8173,2446.1,2445.9,0.81735]
[1750969906535,0.8173,2446.1,2445.8,6.01606]
[1750969906837,0.81734,2446.0,2445.8,6.01606]
[1750969907136,0.81735,2445.9,2445.8,5.1987]
[1750969907334,0.81735,2445.9,2445.8,3.8759]
[1750969907838,0.81735,2445.9,2445.8,0.6681]
[1750969908027,0.81734,2446.0,2445.8,0.6681]
[1750969908436,3.3782892,2446.1,2445.8,0.6681]
[1750969908626,4.1956392,2445.9,2445.8,0.6681]
[1750969908832,0.81735,2445.9,2445.8,0.6681]
[1750969909729,4.1956292,2446.0,2445.8,0.6681]
[1750969909940,1.3567,2446.1,2445.8,0.6681]
[1750969910139,0.81733,2446.0,2445.8,1.48547]
[1750969910340,0.81735,2445.9,2445.8,0.6681]
[1750969910538,0.81734,2446.0,2445.8,0.6681]
[1750969910736,0.7298,2446.2,2445.8,0.6681]
[1750969911038,1.54708,2446.2,2446.0,0.81732]
[1750969911232,0.6806,2446.3,2445.8,3.8759]
[1750969911233,11.2159892,2446.4,2446.1,4.02506]
[1750969911435,7.8377,2446.4,2446.2,0.6801]
[1750969911628,0.81722,2446.3,2446.2,0.6801]
[1750969911834,7.29821,2446.4,2446.2,1.49735]
[1750969912232,0.81722,2446.3,2446.2,0.6801]
[1750969912436,0.6632,2446.5,2446.2,0.6801]
[1750969913143,0.81722,2446.3,2446.2,0.6801]
[1750969914943,0.8172,2446.4,2446.2,0.6801]
[1750969915137,0.8172,2446.4,2446.2,1.49733]
[1750969915337,0.8172,2446.4,2446.2,2.96283]
[1750969915741,0.6632,2446.5,2446.3,0.81721]
[1750969915946,1.48035,2446.5,2446.4,3.2078]
[1750969916641,8.52359,2446.9,2446.4,3.2078]
[1750969916642,2.43181225,2447.0,2446.4,8.2078]
[1750969916843,2.43181225,2447.2,2446.9,3.2078]
[1750969917048,2.43181225,2447.2,2447.0,1.50938]
[1750969917244,0.81692,2447.3,2447.0,1.50938]
[1750969917548,3.3782892,2447.1,2447.0,0.6924]
[1750969917747,4.1952392,2447.1,2447.0,0.6924]
[1750969917947,0.81694,2447.2,2447.0,0.6924]
[1750969918148,1.3505,2447.3,2447.0,0.6924]
[1750969918340,0.8169,2447.3,2447.1,0.81695]
[1750969918542,0.8169,2447.3,2447.0,1.50936]
[1750969918939,2.7663,2447.6,2447.0,0.6924]
[1750969919147,5.9741,2447.6,2446.9,3.2078]
[1750969919341,3.3782892,2447.4,2447.0,0.6845]
[1750969919543,0.81695,2447.1,2447.0,0.6845]
[1750969920451,0.81694,2447.2,2447.0,0.6845]
[1750969920644,0.81695,2447.1,2447.0,0.6845]
[1750969920848,0.81694,2447.2,2447.0,0.6845]
[1750969921149,4.7287892,2447.4,2447.0,0.6845]
[1750969921355,0.81692,2447.3,2447.0,1.50148]
[1750969921648,1.3505,2447.4,2447.0,2.0369]
[1750969921847,0.81695,2447.1,2447.0,2.0369]
[1750969922149,0.81695,2447.1,2447.0,0.6845]
[1750969923048,4.7287892,2447.4,2446.9,9.6868]
[1750969923049,0.81699,2447.0,2446.9,3.2078]
[1750969923256,4.1952792,2447.0,2446.9,3.2078]
[1750969923650,0.81709,2446.7,2446.6,9.6868]
[1750969924160,0.81707,2446.8,2446.6,10.50389]
[1750969924347,0.81707,2446.8,2446.6,9.6868]
[1750969924542,6.479,2447.3,2446.6,13.0650892]
[1750969924752,9.8572892,2447.3,2446.9,3.2078]
[1750969924956,3.3782892,2447.3,2447.0,0.7021]
[1750969925256,0.81695,2447.1,2447.0,0.7021]
[1750969927351,9.3339192,2447.6,2447.0,0.7021]
[1750969927556,0.81684,2447.5,2447.2,3.2078]
[1750969927854,8.1989292,2447.8,2447.2,4.0247]
[1750969928042,0.81683,2447.5,2447.3,0.81688]
[1750969928245,0.81677,2447.7,2447.2,7.9073892]
[1750969928457,0.81679,2447.6,2447.5,3.2078]
[1750969928955,0.7184,2447.8,2447.5,3.2078]
[1750969929252,0.81674,2447.8,2447.5,3.2078]
[1750969929456,0.81675,2447.7,2447.5,5.4345]
[1750969929656,0.81679,2447.6,2447.5,3.2078]
[1750969930455,0.81678,2447.7,2447.5,4.02462]
[1750969930654,1.392,2447.9,2447.5,3.2078]
[1750969930857,0.81679,2447.6,2447.5,4.6177]
[1750969931151,0.81679,2447.6,2447.5,3.2078]
[1750969932561,0.81679,2447.6,2447.2,7.2949]
[1750969932562,0.81689,2447.3,2447.2,6.478]
[1750969933854,0.81692,2447.2,2447.1,3.8845]
[1750969934063,0.81692,2447.2,2447.1,10.3615]
[1750969935161,0.81692,2447.2,2447.1,3.8845]
[1750969935465,0.81692,2447.2,2447.1,10.3615]
[1750969940258,0.81691,2447.3,2447.1,10.3615]
[1750969940658,1.416,2447.4,2447.1,10.3615]
[1750969940659,0.81692,2447.2,2447.1,10.3615]
[1750969941061,0.8169,2447.3,2447.1,10.3615]
[1750969941265,0.81691,2447.3,2447.1,11.17844]
[1750969942274,0.81687,2447.4,2447.1,10.3615]
[1750969942565,0.7168,2447.5,2447.3,0.81687]
[1750969942765,0.7168,2447.5,2447.4,3.2078]
[1750969942766,1.53362,2447.5,2447.4,3.2078]
[1750969942968,0.7168,2447.5,2447.4,4.02465]
[1750969943164,0.7142,2447.6,2447.4,4.02465]
[1750969943463,0.8168,2447.6,2447.4,3.2078]
[1750969943661,0.8168,2447.6,2447.5,1.53852]
[1750969944366,1.4602,2447.8,2447.5,1.53852]
[1750969944367,0.81678,2447.7,2447.5,1.53852]
[1750969944557,0.81679,2447.6,2447.5,0.7217]
[1750969944955,0.81678,2447.7,2447.6,0.81679]
[1750969945157,0.81679,2447.6,2447.5,1.5385]
[1750969947063,0.81679,2447.6,2447.5,0.7217]
[1750969947769,0.81679,2447.6,2447.5,1.53852]
[1750969947967,0.81677,2447.7,2447.6,0.81678]
[1750969949774,0.81677,2447.7,2447.5,1.53849]
[1750969949968,0.81677,2447.7,2447.6,0.81679]
[1750969950762,3.76191225,2448.2,2447.5,7.2987]
[1750969950969,0.81669,2447.9,2447.8,3.2078]
[1750969951267,0.81668,2448.0,2447.9,0.81668]
[1750969951465,0.81668,2448.0,2447.9,1.53508]
[1750969952060,0.81664,2448.1,2447.9,1.53508]
[1750969952369,0.81665,2448.0,2447.9,1.53508]
[1750969952563,0.81665,2448.0,2447.9,0.7184]
[1750969952868,0.81665,2448.0,2447.9,1.53509]
[1750969953368,0.81664,2448.1,2447.9,8.11206]
[1750969953766,0.81664,2448.1,2447.9,8.11207]
[1750969953963,1.51981,2448.2,2448.0,0.81664]
[1750969954167,0.81661,2448.2,2448.0,0.81664]
[1750969954367,3.2078,2448.6,2448.1,3.2078]
[1750969954670,0.81654,2448.4,2448.1,3.2078]
[1750969954972,0.81656,2448.3,2448.1,6.68924727]
[1750969955174,0.81652,2448.4,2448.2,0.81657]
[1750969955464,0.81652,2448.4,2448.1,5.87264727]
[1750969955465,0.81652,2448.4,2448.3,0.696]
[1750969955674,3.36420883,2448.7,2448.3,0.696]
[1750969955867,0.81645,2448.6,2448.5,3.2078]
[1750969956068,1.387,2448.7,2448.5,3.2078]
[1750969956268,2.20344,2448.7,2448.5,3.2078]
[1750969956469,1.3762,2448.8,2448.5,3.2078]
[1750969956470,0.81645,2448.6,2448.5,3.2078]
[1750969957167,0.6604,2448.8,2448.5,3.2078]
[1750969957371,0.81645,2448.6,2448.5,3.2078]
[1750969958975,4.18065883,2448.6,2448.5,3.2078]
[1750969959668,0.81645,2448.6,2448.5,3.2078]
[1750969962167,4.18065883,2448.6,2448.5,3.2078]
[1750969963276,5.40539883,2448.6,2448.2,9.7828]
[1750969963572,0.81655,2448.3,2448.2,3.2078]
[1750969963879,2.04144,2448.3,2447.9,3.2078]
[1750969964173,0.81675,2447.7,2447.6,3.2078]
[1750969965272,0.81673,2447.8,2447.6,3.2078]
[1750969965466,0.81673,2447.8,2447.6,9.7828]
[1750969965671,8.61317883,2448.6,2447.8,0.81671]
[1750969965870,1.4538,2448.5,2448.0,3.2078]
[1750969966072,0.81659,2448.2,2448.0,4.02444]
[1750969966381,0.81658,2448.3,2448.0,4.02444]
[1750969966677,0.81658,2448.3,2448.1,0.7172]
[1750969967076,0.81659,2448.2,2448.1,0.7172]
[1750969967983,0.81662,2448.1,2448.0,3.2078]
[1750969968780,2.27042,2448.1,2448.0,3.2078]
[1750969972084,1.4538,2448.1,2448.0,3.2078]
[1750969972296,1.4538,2448.1,2448.0,4.02445]
[1750969972582,2.27042,2448.1,2448.0,3.2078]
[1750969974283,1.4538,2448.1,2448.0,3.2078]
[1750969975077,1.3557,2448.5,2448.0,3.2078]
[1750969975274,0.6929,2448.5,2448.3,4.02435]
[1750969975486,0.81646,2448.6,2448.4,1.50452]
[1750969976188,0.81644,2448.7,2448.5,0.81649]
[1750969976479,0.81645,2448.6,2448.4,1.50449]
[1750969976686,0.81649,2448.5,2448.4,0.688]
[1750969980687,0.81652,2448.4,2448.3,3.2078]